Cogmind - Beta 10.2 --- EXPLORER MODE // 2021.03.25 @ 21:57:47 Player: Analote Result: Destroyed by H-55 Commando with Gauss Rifle Performance ------------- Evolutions (3) 1500 Regions Visited (6) 1200 Robots Destroyed (5) 25 Value Destroyed (105) 105 Prototype IDs (0) 0 Alien Tech Used (0) 0 Bonus (0) 0 TOTAL SCORE: 2830 Bonus ------- None Cogmind --------- Core Integrity 0/700 Matter 300/300 Energy 99/100 System Corruption 4% Temperature Cool (0) Movement Core (50) Location -7/Factory Parts ------- > --- POWER (1) -------- (None) > --- PROPULSION (4) --- (None) > --- UTILITY (5) ------ (None) > --- WEAPON (4) ------- (None) > --- INVENTORY (4) ---- (None) Peak State ------------ None Favorites ----------- Power None Propulsion None Utility None Weapon None Build | -11 -10 -10 -10 -9 -8 -7 ------- Run | Scr Mat Min Exi Min Mat Fac Slots Evolved 7 | . 1 . . . 4 2 Power . | . . . . . . . Propulsion 2 | . . . . . 2 . Utility 3 | . 1 . . . 1 1 Weapon 2 | . . . . . 1 1 Parts Attached . | . . . . . . . Power . | . . . . . . . Engine . | . . . . . . . Core . | . . . . . . . Reactor . | . . . . . . . Propulsion . | . . . . . . . Treads . | . . . . . . . Leg . | . . . . . . . Wheel . | . . . . . . . Hover . | . . . . . . . Flight . | . . . . . . . Utility . | . . . . . . . Device . | . . . . . . . Storage . | . . . . . . . Processor . | . . . . . . . Hackware . | . . . . . . . Protection . | . . . . . . . Artifact . | . . . . . . . Weapon . | . . . . . . . Energy Gun . | . . . . . . . Energy Cannon . | . . . . . . . Ballistic Gun . | . . . . . . . Ballistic Cannon . | . . . . . . . Launcher . | . . . . . . . Special Weapon . | . . . . . . . Impact Weapon . | . . . . . . . Slashing Weapon . | . . . . . . . Piercing Weapon . | . . . . . . . Special Melee Weapon . | . . . . . . . Unidentified Prototypes . | . . . . . . . Parts Lost . | . . . . . . . Power . | . . . . . . . Propulsion . | . . . . . . . Utility . | . . . . . . . Weapon . | . . . . . . . Highest Loss Streak . | . . . . . . . Average Slot Usage (%) . | . . . . . . . Naked Turns 1307 | . 75 166 408 215 95 348 Heaviest Build . | . . . . . . . Greatest Support 3 | 3 3 3 3 3 3 3 Greatest Overweight (x) . | . . . . . . . Average Overweight (x) . | . . . . . . . Largest Inventory Capacity 4 | 4 4 4 4 4 4 4 Average Capacity 4 | 4 4 4 4 4 4 4 Most Carried . | . . . . . . . Average Carried . | . . . . . . . Final Capacity 4 | 4 4 4 4 4 4 4 Final Carried . | . . . . . . . Class Distribution -------------------- 100% | Hacker-Mutant Dominant Class ---------------- Hacker-Mutant | -10/Materials Hacker-Mutant | -10/Mines Hacker-Mutant | -10/Exiles Hacker-Mutant | -9/Mines Hacker-Mutant | -8/Materials Hacker-Mutant | -7/Factory Resources | -11 -10 -10 -10 -9 -8 -7 ----------- Run | Scr Mat Min Exi Min Mat Fac Matter Collected 203 | . . 200 . . . 3 Remotely . | . . . . . . . Salvage Created 340 | . . . . 81 60 199 Parts 21 | . . . . 8 7 6 Haulers Intercepted . | . . . . . . . Recyclers Shooed . | . . . . . . . Parts Field Recycled . | . . . . . . . Retrieved Matter . | . . . . . . . Parts Self-Destructed . | . . . . . . . Prevented . | . . . . . . . Kills | -11 -10 -10 -10 -9 -8 -7 ------- Run | Scr Mat Min Exi Min Mat Fac Combat Hostiles Destroyed 2 | . . . . 1 1 . Melee 2 | . . . . 1 1 . Classes Destroyed 4 | . . . . 2 1 1 Worker 1 | . . . . 1 . . Recycler 2 | . . . . . . 2 Grunt 1 | . . . . 1 . . Sentry 1 | . . . . . 1 . Best Kill Streak 1 | . . . . 1 1 1 Combat Bots Only 1 | . . . . 1 1 . Max Kills in Single Turn 1 | . . . . 1 1 1 Gunslinging . | . . . . . . . Exploded . | . . . . . . . Melee 1 | . . . . 1 1 . Uniques/NPCs Destroyed . | . . . . . . . Combat | -11 -10 -10 -10 -9 -8 -7 -------- Run | Scr Mat Min Exi Min Mat Fac Damage Taken 992 | . 8 . . 182 101 701 Core 992 | . 8 . . 182 101 701 Absorbed by Shields . | . . . . . . . Core Remaining (%) 68 | 100 . . . 24 81 . Volleys Fired . | . . . . . . . Largest . | . . . . . . . Hottest . | . . . . . . . Shots Fired . | . . . . . . . Gun . | . . . . . . . Cannon . | . . . . . . . Launcher . | . . . . . . . Special . | . . . . . . . Kinetic . | . . . . . . . Thermal . | . . . . . . . Explosive . | . . . . . . . Electromagnetic . | . . . . . . . Robot Hit Streak . | . . . . . . . Robot Miss Streak . | . . . . . . . Penetration Max . | . . . . . . . Secondary Targets . | . . . . . . . Shots Hit Robots . | . . . . . . . Core Hits 29 | . . . . 9 5 15 Critical Hits . | . . . . . . . Critical Kills . | . . . . . . . Critical Parts Destroyed . | . . . . . . . Melee Attacks . | . . . . . . . Impact . | . . . . . . . Slashing . | . . . . . . . Piercing . | . . . . . . . Sneak Attacks . | . . . . . . . Combat Hostiles . | . . . . . . . Follow-up Attacks . | . . . . . . . Damage Inflicted 227 | . . . . 86 26 115 Guns . | . . . . . . . Cannons . | . . . . . . . Explosions . | . . . . . . . Melee . | . . . . . . . Ramming 227 | . . . . 86 26 115 Kinetic . | . . . . . . . Thermal . | . . . . . . . Explosive . | . . . . . . . Electromagnetic . | . . . . . . . Impact . | . . . . . . . Slashing . | . . . . . . . Piercing . | . . . . . . . Highest Corruption 4 | . . . . . . 4 Average Corruption 2 | . . . . . . 2 Corruption Purged . | . . . . . . . Effects 3 | . . . . . . 3 Message Errors 1 | . . . . . . 1 Matter Fused 2 | . . . . . . 2 Overload Shots . | . . . . . . . Overflow Damage . | . . . . . . . Projectiles . | . . . . . . . Explosions . | . . . . . . . Melee . | . . . . . . . Knockbacks . | . . . . . . . Impact . | . . . . . . . Kinetic . | . . . . . . . Secondary . | . . . . . . . Self-Inflicted Damage 100 | . . . . 39 12 49 Shots . | . . . . . . . Rammed 55 | . . . . 19 9 27 Targets Rammed 55 | . . . . 19 9 27 Kicked . | . . . . . . . Crushed . | . . . . . . . Highest Temperature . | . . . . . . . Average Temperature . | . . . . . . . Received Heat Transfer 528 | . . . . 129 27 372 Siege Activations . | . . . . . . . Robots Corrupted . | . . . . . . . Combat Hostiles . | . . . . . . . Parts Fried . | . . . . . . . Impact Corruptions . | . . . . . . . Robots Melted . | . . . . . . . Combat Hostiles . | . . . . . . . Parts Melted . | . . . . . . . Heat Transferred . | . . . . . . . Parts Sabotaged . | . . . . . . . Parts Stolen . | . . . . . . . Parts Stripped . | . . . . . . . Power Chain Reactions . | . . . . . . . Missiles Intercepted . | . . . . . . . Alert | -11 -10 -10 -10 -9 -8 -7 ------- Run | Scr Mat Min Exi Min Mat Fac Peak Influence 357 | . 15 4 . 35 54 357 Initial 17 | . . 4 . . 9 17 Average 54 | . 10 4 . 14 42 117 Maximum Alert Level 1 | . . . . . . 1 Low Security (%) 92 | 100 100 100 . 100 100 81 Level 1 7 | . . . . . . 18 Level 2 . | . . . . . . . Level 3 . | . . . . . . . Level 4 . | . . . . . . . Level 5 . | . . . . . . . High Security . | . . . . . . . Max Security . | . . . . . . . Squads Dispatched 4 | . . . . . . 4 Investigation . | . . . . . . . Extermination 1 | . . . . . . 1 Reinforcement 3 | . . . . . . 3 Assault . | . . . . . . . Garrison . | . . . . . . . Intercept . | . . . . . . . Construction Impeded 1 | . . . . . . 1 Haulers Reinforced . | . . . . . . . Stealth | -11 -10 -10 -10 -9 -8 -7 --------- Run | Scr Mat Min Exi Min Mat Fac Distress Signals . | . . . . . . . Communications Jammed . | . . . . . . . Distress Signals . | . . . . . . . Times Spotted 30 | . 3 . . 4 1 22 Peak Tracking Total 13 | . 3 . . 2 1 13 Tactical Retreats 5 | . . . . . . 5 Traps | -11 -10 -10 -10 -9 -8 -7 ------- Run | Scr Mat Min Exi Min Mat Fac Traps Triggered 3 | . . . . . 1 2 Indirectly . | . . . . . . . Trap Hack Attempts . | . . . . . . . Triggered . | . . . . . . . Disarmed . | . . . . . . . Reprogrammed . | . . . . . . . Reused . | . . . . . . . Traps Extracted . | . . . . . . . Installed . | . . . . . . . Triggered . | . . . . . . . Machines | -11 -10 -10 -10 -9 -8 -7 ---------- Run | Scr Mat Min Exi Min Mat Fac Machines Disabled . | . . . . . . . Max in Single Turn . | . . . . . . . Machines Sabotaged . | . . . . . . . Garrisons Compromised . | . . . . . . . Overloaded Fab Kills . | . . . . . . . Fab Network Shutdowns . | . . . . . . . Hacking | -11 -10 -10 -10 -9 -8 -7 --------- Run | Scr Mat Min Exi Min Mat Fac Machines Accessed . | . . . . . . . Terminals . | . . . . . . . Fabricators . | . . . . . . . Repair Stations . | . . . . . . . Recycling Units . | . . . . . . . Scanalyzers . | . . . . . . . Garrison Access . | . . . . . . . Total Hacks . | . . . . . . . Successful . | . . . . . . . Failed . | . . . . . . . Catastrophic . | . . . . . . . Database Lockouts . | . . . . . . . Manual . | . . . . . . . Terminals . | . . . . . . . Fabricators . | . . . . . . . Repair Stations . | . . . . . . . Recycling Units . | . . . . . . . Scanalyzers . | . . . . . . . Garrison Access . | . . . . . . . Terminal Hacks . | . . . . . . . Fabricator Hacks . | . . . . . . . Repair Station Hacks . | . . . . . . . Recycling Unit Hacks . | . . . . . . . Scanalyzer . | . . . . . . . Garrison Access Hacks . | . . . . . . . Unauthorized Hacks . | . . . . . . . Terminals . | . . . . . . . Fabricators . | . . . . . . . Repair Stations . | . . . . . . . Recycling Units . | . . . . . . . Scanalyzers . | . . . . . . . Garrison Access . | . . . . . . . Data Cores Recovered . | . . . . . . . Used . | . . . . . . . Hacking Detections . | . . . . . . . Full Trace Events . | . . . . . . . Feedback Events . | . . . . . . . Feedback Blocked . | . . . . . . . Robot Schematics Acquired . | . . . . . . . Robots Built . | . . . . . . . Matter . | . . . . . . . Time . | . . . . . . . Total Robot Build Rating . | . . . . . . . Part Schematics Acquired . | . . . . . . . Parts Built . | . . . . . . . Matter . | . . . . . . . Time . | . . . . . . . Total Part Build Rating . | . . . . . . . Parts Repaired . | . . . . . . . Time . | . . . . . . . Parts Recycled . | . . . . . . . Recycled Matter . | . . . . . . . Retrieved Matter . | . . . . . . . Retrieved Components . | . . . . . . . Parts Scanalyzed . | . . . . . . . Part Schematics Acquired . | . . . . . . . Parts Damaged . | . . . . . . . Bothacking | -11 -10 -10 -10 -9 -8 -7 ------------ Run | Scr Mat Min Exi Min Mat Fac Used RIF Installer . | . . . . . . . Robots Hacked . | . . . . . . . Non-combat . | . . . . . . . Combat . | . . . . . . . Robot Hacks Applied . | . . . . . . . Relay Couplers Released . | . . . . . . . Robots Rewired 1 | . . . 1 . . . Allies Hacked . | . . . . . . . Hacks Repelled . | . . . . . . . Allies | -11 -10 -10 -10 -9 -8 -7 -------- Run | Scr Mat Min Exi Min Mat Fac Total Allies 3 | . . 2 1 . . . Largest Group 2 | . . 2 1 . . . Highest-Rated Group 42 | . . 42 8 . . . Highest-Rated Ally 31 | . . 31 8 . . . Total Orders . | . . . . . . . Ally Attacks . | . . . . . . . Total Damage . | . . . . . . . Kills . | . . . . . . . Allies Corrupted . | . . . . . . . Allies Melted . | . . . . . . . Intel | -11 -10 -10 -10 -9 -8 -7 ------- Run | Scr Mat Min Exi Min Mat Fac Robot Analysis Total . | . . . . . . . Derelict Logs Recovered . | . . . . . . . Drone Launches . | . . . . . . . Drone Recoveries . | . . . . . . . Exploration | -11 -10 -10 -10 -9 -8 -7 ------------- Run | Scr Mat Min Exi Min Mat Fac Turns Passed 1317 | 10 75 166 408 215 95 348 Spaces Moved 2329 | 21 150 331 622 392 172 641 Core 2329 | 21 150 331 622 392 172 641 Treads . | . . . . . . . Legs . | . . . . . . . Wheels . | . . . . . . . Hover . | . . . . . . . Flight . | . . . . . . . Fastest Speed 50 | 50 50 50 50 50 50 50 Average Speed 50 | 50 50 50 50 50 50 50 Slowest Speed 50 | 50 50 50 50 50 50 50 Overloaded Moves . | . . . . . . . Propulsion Burnouts . | . . . . . . . Robots Hopped . | . . . . . . . Cave-ins Triggered . | . . . . . . . Exploration Rate (%) 37 | 3 28 62 79 62 12 19 Regions Visited 6 Branch Regions 3 Pre-discovered Areas . | . . . . . . . Known Exits Taken 6 | 1 1 1 1 1 1 . Unknown Exits Taken . | . . . . . . . Scrap Searched . | . . . . . . . Spaces Dug . | . . . . . . . Terrain Destroyed . | . . . . . . . Melee . | . . . . . . . Projectile . | . . . . . . . AOE . | . . . . . . . Terrain Rammed . | . . . . . . . Walls Destroyed . | . . . . . . . Machines Disabled . | . . . . . . . Actions | -11 -10 -10 -10 -9 -8 -7 --------- Run | Scr Mat Min Exi Min Mat Fac Total 2475 | 20 149 330 718 410 180 668 Wait . | . . . . . . . Move 2323 | 20 149 330 621 391 171 641 Hop . | . . . . . . . Pick Up . | . . . . . . . Fast Attach . | . . . . . . . Attach . | . . . . . . . Detach . | . . . . . . . Swap . | . . . . . . . Drop . | . . . . . . . Fire . | . . . . . . . Melee . | . . . . . . . Ram 55 | . . . . 19 9 27 Kick . | . . . . . . . Crush . | . . . . . . . Escape Stasis . | . . . . . . . Rewire 97 | . . . 97 . . . Trap . | . . . . . . . Miscellaneous . | . . . . . . . Route ------- -11/Scrapyard -10/Materials -10/Mines -10/Exiles -9/Mines -8/Materials -7/Factory History --------- Turn | Location | Event 5 | -11/Scrapyard | Identified exit to Materials 5 | -11/Scrapyard | Discovered exit to Materials (range 13) 11 | -11/Scrapyard | Entered Materials 11 | -10/Materials | Evolved 1 slot: Utility x1 83 | -10/Materials | Identified exit to Mines 83 | -10/Materials | Discovered exit to Mines (range 7) 86 | -10/Materials | Entered Mines 140 | -10/Mines | Found a hidden stash of uninstalled traps 248 | -10/Mines | Deemed a non-threat by the Exiles lab entrance 249 | -10/Mines | Identified exit to Exiles 249 | -10/Mines | Discovered exit to Exiles (range 5) 252 | -10/Mines | Entered Exiles 252 | -10/Exiles | Found Exiles lab destroyed 305 | -10/Exiles | Build established: Hacker-Mutant 427 | -10/Exiles | Identified exit to Mines 427 | -10/Exiles | Discovered exit to Mines (range 10) 660 | -10/Exiles | Entered Mines 714 | -9/Mines | Assembled infested the area 769 | -9/Mines | Core integrity fell below 50% 869 | -9/Mines | Identified exit to Materials 869 | -9/Mines | Discovered exit to Materials (range 7) 875 | -9/Mines | Entered Materials 875 | -8/Materials | Evolved 4 slots: Propulsion x2, Utility x1, Weapon x1 967 | -8/Materials | Identified exit to Factory 967 | -8/Materials | Discovered exit to Factory (range 7) 970 | -8/Materials | Entered Factory 970 | -7/Factory | Evolved 2 slots: Utility x1, Weapon x1 1216 | -7/Factory | Core integrity fell below 50% 1252 | -7/Factory | Core integrity fell below 20% 1318 | -7/Factory | Destroyed by H-55 Commando with Gauss Rifle Last Messages --------------- area. 01236_ Slammed into R-06 Scavenger. 01237_ Slammed into U-05 Engineer. 01238_ System corrupted: Matter fused (-8). 01238_ Acquired 3 matter. 01238_ Slammed into U-05 Engineer. 01242_ Slammed into R-06 Scavenger. 01242_ R-06 Scavenger destroyed. 01244_ R-06 Scavenger collects Lgt. Ion Engine. 01244_ Slammed into G-47 Trooper. 01245_ Slammed into R-06 Scavenger. 01256_ Penetrated by Slug. 01268_ >= DNV6N>G0WOGUR ,=F#06 9S4J 01275_ O-24 Administrator uses terminal to summon reinforcements. 01275_ ALERT: Hostiles spotted, dispatching reinforcements to Terminal F018. 01275_ O-24 Administrator locks terminal. 01276_ K-01 Serf cleans the Pressure Siphon. 01292_ Penetrated by Slug. 01309_ Slug penetrates Wall. 01318_ Penetrated by Slug. Map ----- +----------------------------------------------------+ | #?????????????????????????????????????????????? | | T #?????????????????????????????????????????????? | | #?????????????????????????????????????????????? | | #?????????????????????????????????????????????? | | ###?????????????????????????????????????????????? | | #####+########??????????????????????????????????? | | ?????????????????????????????????? | | ?????????????????????????????????? | | ?????????????????????????????????? | | """ """ ""????????????????????????????????????? | | """ ""? ??????????????????????????????????????? | | """ """ "?????????????????????????????????????? | | """ """ ""??"?????????????????????????????????? | | ?????????????????????????????????? | | """ """ ""? ""????????????????????????????????? | | """ """ """ ""? ""????????????????????????????? | | """ """ """ """ """ ??????????????????????????? | | """ """ """ """ """???????????????????????????? | | ???????????????????????????? | | = =?????????????????????????????? | | #??????????????????????????????? | | #??????????????????????????????? | | #??????????????????????????????? | | #??????????????????????????????? | | ##########?????????????????????? | | @ #?????????????????????? | | ##### #?????????????????????? | | #???? #?????????????????????? | | #?????#?????????????????????? | | ##### #???????????????????????????? | | ????# #???????????????????????????? | | ????# #???????????????????????????? | | ????# #???????????????????????????? | | ????# #???#+####??????????????????? | | ????# #??? #??????????????????? | | ????# #?? #??????????????????? | | ? ### +??????????????????? | | ########+#####+## + ! #??????????????????? | | ????????????????# ### #??????????????????? | | ????????????????# #?? [ #??????????????????? | | ????????????????# #???######??????????????????? | | ????????????????# #???????????????????????????? | | ????????????????# #???????????????????????????? | | ????????????????# #???????????????????????????? | | ????????????????#+##+#???????????????????????????? | | ?????????????????? ??????????????????????????? | | ???????????????? ????????????????????????? | | ???????????????# #???????????????????????? | | ???????????????# #???????????????????????? | | ???????????????###########???????????????????????? | +----------------------------------------------------+ Best States ------------- Heat Dissipation 34 Energy Generation 5 Energy Capacity 100 Matter Stores 300 Matter Capacity 300 Sight Range 16 Terrain Scan Density 10 Resistance: KI 35 Resistance: TH 35 Resistance: EX 35 Resistance: EM 35 Resistance: I 35 Resistance: S 35 Resistance: P 35 Evasion (%) 50 Offensive Hacking 20 Item Schematics ----------------- None Robot Schematics ------------------ None Fabricated ------------ Nothing Alien Tech Used ----------------- None Achievements -------------- A New Friend Challenges ------------ None Game ------ Seed SuspensionHugeDeconstructor Manual? 0 Play Time 00:10:47 Cumulative 35.6 hours Start 2021.03.25 @ 21:49:31 End 2021.03.25 @ 21:57:47 Sessions 1 Manual Loads 0 Difficulty Explorer Special Mode None Game No. 52 Rogue 0 Adventurer 0 Explorer 52 Win Type - Total 0 Types 0/0/0/0/0/0/0/0/0 Lore% 32 Gallery% 46 Achievement% 38 Wizard Run 0 Options --------- ASCII 0 Keyboard 0 Movement Arrows Keybinds 0 Fullscreen 1 Font 12/Smallcaps Map View 83x54 Tactical HUD 1 Map Filters NONE Filters NONE Steam 1 RUN: d4cd1869-5f22-4502-b633-faea626fa76f